fUST/lending_fUST_20240525
["ID","MTS","AMOUNT","RATE_DAILY","PERIOD"]
[327881374,1716576644351,-500.0,0.00025479,5]
[327881375,1716576644361,-500.0,0.00025479,5]
[327881376,1716576644370,-500.0,0.00025479,5]
[327881377,1716576644379,-500.0,0.00025479,5]
[327881378,1716576644390,-500.0,0.00025479,5]
[327881379,1716576644400,-500.0,0.00025479,5]
[327881380,1716576644410,-500.0,0.00025479,5]
[327881381,1716576644420,-500.0,0.00025479,5]
[327881382,1716576644429,-500.0,0.00025479,5]
[327881383,1716576644439,-500.0,0.00025479,5]
[327881384,1716576644449,-151.0,0.00025728,5]
[327881385,1716576644457,-1535.96,0.00025752,19]
[327881386,1716576644465,-500.0,0.00025753,6]
[327881387,1716576644473,-500.0,0.00025753,6]
[327881388,1716576644483,-500.0,0.00025753,6]
[327881389,1716576644492,-500.0,0.00025753,6]
[327881390,1716576644503,-500.0,0.00025753,6]
[327881391,1716576644512,-500.0,0.00025753,6]
[327881392,1716576644522,-500.0,0.00025753,6]
[327881393,1716576644532,-500.0,0.00025753,6]
[327881394,1716576644542,-500.0,0.00025753,6]
[327881395,1716576644551,-500.0,0.00025753,6]
[327881396,1716576644561,-500.0,0.00025753,6]
[327881397,1716576644571,-500.0,0.00025753,6]
[327881398,1716576644579,-500.0,0.00025753,6]
[327881399,1716576644588,-500.0,0.00025753,6]
[327881400,1716576644597,-500.0,0.00025753,6]
[327881401,1716576644606,-200.0,0.00025753,6]
[327881402,1716576644616,-516.99,0.00025753,6]
[327881403,1716576644625,-500.0,0.00025753,6]
[327881404,1716576644634,-500.0,0.00025753,6]
[327881405,1716576644645,-250.0,0.00025753,6]
[327881406,1716576644660,-500.0,0.00025753,6]
[327881407,1716576644667,-500.0,0.00025753,6]
[327881408,1716576644675,-500.0,0.00025753,6]
[327881409,1716576644683,-500.0,0.00025753,6]
[327881410,1716576644693,-500.0,0.00025753,6]
[327881411,1716576644703,-500.0,0.00025753,6]
[327881412,1716576644713,-500.0,0.00025753,6]
[327881413,1716576644723,-572.78,0.00025753,6]
[327881414,1716576644736,-366.66027768,0.00025753,6]
[327881415,1716576644748,-500.0,0.00025753,6]
[327881416,1716576644757,-500.0,0.00025753,6]
[327881417,1716576644766,-500.0,0.00025753,6]
[327881418,1716576644776,-500.0,0.00025753,6]
[327881419,1716576644785,-500.0,0.00025753,6]
[327881420,1716576644795,-500.0,0.00025753,6]
[327881421,1716576644805,-1733.98,0.00025753,6]
[327881422,1716576644815,-500.0,0.00025753,6]
[327881423,1716576644824,-500.0,0.00025753,6]
[327881424,1716576644834,-500.0,0.00025753,6]
[327881425,1716576644844,-500.0,0.00025753,6]
[327881426,1716576644854,-2950.1,0.00025753,6]
[327881427,1716576644864,-500.0,0.00025753,6]
[327881428,1716576644874,-581.31727498,0.00025753,6]
[327881429,1716576644884,-500.0,0.00025753,6]
[327881430,1716576644894,-947.09,0.00025753,6]
[327881431,1716576644904,-500.0,0.00025753,6]
[327881432,1716576644913,-500.0,0.00025753,6]
[327881433,1716576644922,-500.0,0.00025753,6]
[327881434,1716576644931,-500.0,0.00025753,6]
[327881435,1716576644941,-1239.82,0.00025753,6]
[327881436,1716576644951,-500.0,0.00025753,6]
[327881437,1716576644961,-602.63,0.00025753,6]
[327881438,1716576644970,-500.0,0.00025753,6]
[327881439,1716576644979,-511.33,0.00025753,6]
[327881440,1716576644988,-500.0,0.00025753,6]
[327881441,1716576644999,-500.0,0.00025753,6]
[327881442,1716576645009,-500.0,0.00025753,6]
[327881443,1716576645018,-500.0,0.00025753,6]
[327881444,1716576645027,-1229.24,0.00025753,6]
[327881445,1716576645037,-500.0,0.00025753,6]
[327881446,1716576645046,-500.0,0.00025753,6]
[327881447,1716576645057,-500.0,0.00025753,6]
[327881448,1716576645067,-500.0,0.00025753,6]
[327881449,1716576645077,-500.0,0.00025753,6]
[327881450,1716576645086,-3555.67,0.00025753,6]
[327881451,1716576645096,-500.0,0.00025753,6]
[327881452,1716576645106,-500.0,0.00025753,6]
[327881453,1716576645116,-3409.17,0.00025753,6]
[327881454,1716576645125,-500.0,0.00025753,6]
[327881455,1716576645135,-500.0,0.00025753,6]
[327881456,1716576645144,-500.0,0.00025753,6]
[327881457,1716576645154,-500.0,0.00025753,6]
[327881458,1716576645167,-500.0,0.00025753,6]
[327881459,1716576645180,-592.29,0.00025753,6]
[327881460,1716576645194,-1124.78,0.00025753,6]
[327881461,1716576645207,-500.0,0.00025753,6]
[327881462,1716576645220,-500.0,0.00025753,6]
[327881463,1716576645231,-335.81662484,0.00025753,6]
[327881464,1716576645243,-500.0,0.00025753,6]
[327881465,1716576645257,-500.0,0.00025753,6]
[327881466,1716576645268,-500.0,0.00025753,6]
[327881467,1716576645280,-500.0,0.00025753,6]
[327881468,1716576645293,-500.0,0.00025753,6]
[327881469,1716576645306,-500.0,0.00025753,6]
[327881470,1716576645320,-11163.7035002,0.00026,2]
[327881471,1716576645333,-1535.96,0.00026026,20]
[327881472,1716576645345,-500.0,0.00026027,7]
[327881473,1716576645359,-500.0,0.00026027,7]
[327881474,1716576645371,-500.0,0.00026027,7]
[327881475,1716576645385,-500.0,0.00026027,7]
[327881476,1716576645397,-500.0,0.00026027,7]
[327881477,1716576645408,-500.0,0.00026027,7]
[327881478,1716576645420,-500.0,0.00026027,7]
[327881479,1716576645432,-500.0,0.00026027,7]
[327881480,1716576645443,-500.0,0.00026027,7]
[327881481,1716576645455,-500.0,0.00026027,7]
[327881482,1716576645468,-500.0,0.00026027,7]
[327881483,1716576645480,-500.0,0.00026027,7]
[327881484,1716576645491,-500.0,0.00026027,7]
[327881485,1716576645504,-500.0,0.00026027,7]
[327881486,1716576645514,-500.0,0.00026027,7]
[327881487,1716576645525,-516.99,0.00026027,7]
[327881488,1716576645536,-500.0,0.00026027,7]
[327881489,1716576645547,-500.0,0.00026027,7]
[327881490,1716576645558,-250.0,0.00026027,7]
[327881491,1716576645570,-500.0,0.00026027,7]
[327881492,1716576645582,-500.0,0.00026027,7]
[327881493,1716576645594,-500.0,0.00026027,7]
[327881494,1716576645605,-500.0,0.00026027,7]
[327881495,1716576645616,-500.0,0.00026027,7]
[327881496,1716576645628,-500.0,0.00026027,7]
[327881497,1716576645640,-500.0,0.00026027,7]
[327881498,1716576645655,-572.78,0.00026027,7]
[327881499,1716576645667,-200.22,0.00026027,7]
[327881500,1716576645678,-500.0,0.00026027,7]
[327881501,1716576645690,-500.0,0.00026027,7]
[327881502,1716576645700,-500.0,0.00026027,7]
[327881503,1716576645711,-500.0,0.00026027,7]
[327881504,1716576645722,-500.0,0.00026027,7]
[327881505,1716576645736,-1733.98,0.00026027,7]
[327881506,1716576645749,-500.0,0.00026027,7]
[327881507,1716576645760,-500.0,0.00026027,7]
[327881508,1716576645771,-500.0,0.00026027,7]
[327881509,1716576645784,-500.0,0.00026027,7]
[327881510,1716576645795,-2950.1,0.00026027,7]
[327881511,1716576645805,-500.0,0.00026027,7]
[327881512,1716576645816,-500.0,0.00026027,7]
[327881513,1716576645830,-947.09,0.00026027,7]
[327881514,1716576645843,-500.0,0.00026027,7]
[327881515,1716576645858,-500.0,0.00026027,7]
[327881516,1716576645871,-500.0,0.00026027,7]
[327881517,1716576645881,-500.0,0.00026027,7]
[327881518,1716576645891,-1239.82,0.00026027,7]
[327881519,1716576645901,-500.0,0.00026027,7]
[327881523,1716576645912,-602.63,0.00026027,7]
[327881526,1716576645923,-440.70151592,0.00026027,7]
[327881528,1716576645934,-511.33,0.00026027,7]
[327881530,1716576645944,-500.0,0.00026027,7]
[327881531,1716576645954,-500.0,0.00026027,7]
[327881532,1716576645965,-500.0,0.00026027,7]
[327881533,1716576645975,-500.0,0.00026027,7]
[327881534,1716576645986,-1229.24,0.00026027,7]
[327881535,1716576645997,-500.0,0.00026027,7]
[327881536,1716576646007,-500.0,0.00026027,7]
[327881537,1716576646018,-500.0,0.00026027,7]
[327881538,1716576646028,-500.0,0.00026027,7]
[327881539,1716576646039,-3555.67,0.00026027,7]
[327881540,1716576646050,-500.0,0.00026027,7]
[327881541,1716576646060,-500.0,0.00026027,7]
[327881542,1716576646071,-3409.17,0.00026027,7]
[327881543,1716576646081,-500.0,0.00026027,7]
[327881544,1716576646093,-500.0,0.00026027,7]
[327881545,1716576646103,-500.0,0.00026027,7]
[327881546,1716576646114,-500.0,0.00026027,7]
[327881547,1716576646124,-500.0,0.00026027,7]
[327881548,1716576646134,-592.29,0.00026027,7]
[327881549,1716576646146,-1124.78,0.00026027,7]
[327881551,1716576646156,-500.0,0.00026027,7]
[327881553,1716576646167,-500.0,0.00026027,7]
[327881555,1716576646178,-500.0,0.00026027,7]
[327881556,1716576646188,-500.0,0.00026027,7]
[327881557,1716576646198,-500.0,0.00026027,7]
[327881558,1716576646209,-644.79175545,0.00026027,7]
[327881559,1716576646219,-500.0,0.00026027,7]
[327881560,1716576646229,-500.0,0.00026301,8]
[327881561,1716576646239,-500.0,0.00026301,8]
[327881562,1716576646250,-500.0,0.00026301,8]
[327881563,1716576646260,-500.0,0.00026301,8]
[327881564,1716576646271,-617.73,0.00026301,8]
[327881565,1716576646281,-500.0,0.00026301,8]
[327881566,1716576646292,-500.0,0.00026301,8]
[327881567,1716576646303,-186.28,0.00026301,8]
[327881568,1716576646314,-500.0,0.00026301,8]
[327881569,1716576646324,-500.0,0.00026301,8]
[327881570,1716576646334,-500.0,0.00026301,8]
[327881571,1716576646344,-500.0,0.00026301,8]
[327881572,1716576646355,-500.0,0.00026301,8]
[327881573,1716576646365,-500.0,0.00026301,8]
[327881574,1716576646375,-516.99,0.00026301,8]
[327881575,1716576646386,-500.0,0.00026301,8]
[327881576,1716576646397,-500.0,0.00026301,8]
[327881577,1716576646408,-167.66192742,0.00026301,8]
[327881578,1716576646419,-500.0,0.00026301,8]
[327881579,1716576646429,-500.0,0.00026301,8]
[327881580,1716576646440,-500.0,0.00026301,8]
[327881581,1716576646451,-500.0,0.00026301,8]
[327881582,1716576646461,-500.0,0.00026301,8]
[327881583,1716576646472,-500.0,0.00026301,8]
[327881584,1716576646482,-572.78,0.00026301,8]
[327881585,1716576646493,-500.0,0.00026301,8]
[327881586,1716576646505,-500.0,0.00026301,8]
[327881587,1716576646517,-500.0,0.00026301,8]
[327881588,1716576646528,-500.0,0.00026301,8]
[327881589,1716576646539,-1733.98,0.00026301,8]
[327881590,1716576646549,-500.0,0.00026301,8]
[327881591,1716576646560,-500.0,0.00026301,8]
[327881592,1716576646571,-500.0,0.00026301,8]
[327881593,1716576646582,-500.0,0.00026301,8]
[327881594,1716576646593,-2950.1,0.00026301,8]
[327881595,1716576646603,-500.0,0.00026301,8]
[327881596,1716576646614,-500.0,0.00026301,8]
[327881597,1716576646625,-947.09,0.00026301,8]
[327881598,1716576646635,-500.0,0.00026301,8]
[327881599,1716576646648,-500.0,0.00026301,8]
[327881600,1716576646660,-500.0,0.00026301,8]
[327881601,1716576646671,-500.0,0.00026301,8]
[327881602,1716576646683,-1239.82,0.00026301,8]
[327881603,1716576646694,-500.0,0.00026301,8]
[327881604,1716576646705,-602.63,0.00026301,8]
[327881605,1716576646716,-511.33,0.00026301,8]
[327881606,1716576646727,-500.0,0.00026301,8]
[327881607,1716576646739,-500.0,0.00026301,8]
[327881608,1716576646752,-500.0,0.00026301,8]
[327881609,1716576646765,-500.0,0.00026301,8]
[327881610,1716576646916,-1229.24,0.00026301,8]
[327881611,1716576646942,-500.0,0.00026301,8]
[327881612,1716576646954,-500.0,0.00026301,8]
[327881613,1716576646963,-500.0,0.00026301,8]
[327881614,1716576646975,-349.00048686,0.00026301,7]
[327881615,1716576646986,-3555.67,0.00026301,8]
[327881616,1716576646996,-500.0,0.00026301,8]
[327881617,1716576647007,-500.0,0.00026301,8]
[327881618,1716576647016,-3409.17,0.00026301,8]
[327881619,1716576647025,-500.0,0.00026301,8]
[327881620,1716576647034,-500.0,0.00026301,8]
[327881621,1716576647043,-166.23027755,0.00026301,8]
[327881622,1716576647053,-500.0,0.00026301,8]
[327881623,1716576647062,-592.29,0.00026301,8]
[327881624,1716576647071,-1124.78,0.00026301,8]
[327881625,1716576647080,-500.0,0.00026301,8]
[327881626,1716576647089,-500.0,0.00026301,8]
[327881627,1716576647099,-500.0,0.00026301,8]
[327881628,1716576647108,-500.0,0.00026301,8]
[327881629,1716576647117,-500.0,0.00026301,8]
[327881630,1716576647126,-379.98554986,0.00026301,8]
[327881631,1716576647136,-151.0,0.00026374,5]
[327881632,1716576647145,-1535.96,0.00026574,21]
[327881633,1716576647154,-1535.96,0.00026574,21]
[327881634,1716576647163,-1535.96,0.00026574,21]
[327881635,1716576647172,-1535.96,0.00026574,21]
[327881636,1716576647182,-1535.99,0.00026574,21]
[327881637,1716576647191,-500.0,0.00026575,9]
[327881638,1716576647201,-500.0,0.00026575,9]
[327881639,1716576647211,-500.0,0.00026575,9]
[327881640,1716576647220,-500.0,0.00026575,9]
[327881641,1716576647229,-500.0,0.00026575,9]
[327881642,1716576647238,-500.0,0.00026575,9]
[327881643,1716576647247,-500.0,0.00026575,9]
[327881644,1716576647259,-500.0,0.00026575,9]
[327881645,1716576647268,-500.0,0.00026575,9]
[327881646,1716576647276,-500.0,0.00026575,9]
[327881647,1716576647285,-500.0,0.00026575,9]
[327881648,1716576647294,-516.99,0.00026575,9]
[327881649,1716576647303,-500.0,0.00026575,9]
[327881650,1716576647312,-500.0,0.00026575,9]
[327881651,1716576647322,-500.0,0.00026575,9]
[327881652,1716576647331,-500.0,0.00026575,9]
[327881653,1716576647340,-500.0,0.00026575,9]
[327881654,1716576647350,-294.46086456,0.00026575,9]
[327881655,1716576647359,-500.0,0.00026575,9]
[327881656,1716576647368,-500.0,0.00026575,9]
[327881657,1716576647377,-572.78,0.00026575,9]
[327881658,1716576647387,-500.0,0.00026575,9]
[327881659,1716576647396,-500.0,0.00026575,9]
[327881660,1716576647405,-500.0,0.00026575,9]
[327881661,1716576647414,-500.0,0.00026575,9]
[327881662,1716576647423,-1733.98,0.00026575,9]
[327881663,1716576647433,-500.0,0.00026575,9]
[327881664,1716576647443,-500.0,0.00026575,9]
[327881665,1716576647452,-500.0,0.00026575,9]
[327881666,1716576647462,-500.0,0.00026575,9]
[327881667,1716576647471,-2950.1,0.00026575,9]
[327881668,1716576647480,-293.43,0.00026575,9]
[327881669,1716576647489,-947.09,0.00026575,9]
[327881670,1716576647499,-500.0,0.00026575,9]
[327881671,1716576647508,-500.0,0.00026575,9]
[327881672,1716576647518,-500.0,0.00026575,9]
[327881673,1716576647528,-500.0,0.00026575,9]
[327881674,1716576647537,-1239.82,0.00026575,9]
[327881675,1716576647547,-500.0,0.00026575,9]
[327881676,1716576647556,-602.63,0.00026575,9]
[327881677,1716576647565,-511.33,0.00026575,9]
[327881678,1716576647575,-331.45554875,0.00026575,9]
[327881679,1716576647585,-500.0,0.00026575,9]
[327881680,1716576647594,-500.0,0.00026575,9]
[327881681,1716576647603,-500.0,0.00026575,9]
[327881682,1716576647613,-1229.24,0.00026575,9]
[327881683,1716576647622,-500.0,0.00026575,9]
[327881684,1716576647632,-500.0,0.00026575,9]
[327881685,1716576647642,-3555.67,0.00026575,9]
[327881686,1716576647654,-500.0,0.00026575,9]
[327881687,1716576647663,-500.0,0.00026575,9]
[327881688,1716576647673,-3409.17,0.00026575,9]
[327881689,1716576647683,-500.0,0.00026575,9]
[327881690,1716576647692,-500.0,0.00026575,9]
[327881691,1716576647701,-231.24170626,0.00026575,9]
[327881692,1716576647710,-592.29,0.00026575,9]
[327881693,1716576647720,-1124.78,0.00026575,9]
[327881694,1716576647731,-500.0,0.00026575,9]
[327881695,1716576647741,-500.0,0.00026575,9]
[327881696,1716576647754,-582.9,0.00026575,9]
[327881697,1716576647763,-192.58584224,0.00026575,9]
[327881698,1716576647772,-500.0,0.00026575,9]
[327881699,1716576647781,-500.0,0.00026849,10]
[327881700,1716576647791,-500.0,0.00026849,10]
[327881701,1716576647801,-500.0,0.00026849,10]
[327881702,1716576647810,-500.0,0.00026849,10]
[327881703,1716576647820,-500.0,0.00026849,10]
[327881704,1716576647831,-500.0,0.00026849,10]
[327881705,1716576647840,-500.0,0.00026849,10]
[327881706,1716576647852,-500.0,0.00026849,10]
[327881707,1716576647861,-500.0,0.00026849,10]
[327881708,1716576647870,-500.0,0.00026849,10]
[327881709,1716576647879,-500.0,0.00026849,10]
[327881710,1716576647888,-516.99,0.00026849,10]
[327881711,1716576647898,-500.0,0.00026849,10]
[327881712,1716576647907,-500.0,0.00026849,10]
[327881713,1716576647917,-500.0,0.00026849,10]
[327881714,1716576647926,-500.0,0.00026849,10]
[327881715,1716576647938,-500.0,0.00026849,10]
[327881716,1716576647947,-287.69,0.00026849,10]
[327881717,1716576647956,-572.78,0.00026849,10]
[327881718,1716576647965,-500.0,0.00026849,10]
[327881719,1716576647974,-500.0,0.00026849,10]
[327881720,1716576647984,-500.0,0.00026849,10]
[327881721,1716576647994,-500.0,0.00026849,10]
[327881722,1716576648004,-1733.98,0.00026849,10]
[327881723,1716576648014,-500.0,0.00026849,10]
[327881724,1716576648023,-500.0,0.00026849,10]
[327881725,1716576648034,-500.0,0.00026849,10]
[327881726,1716576648044,-500.0,0.00026849,10]
[327881727,1716576648054,-2950.1,0.00026849,10]
[327881728,1716576648065,-947.09,0.00026849,10]
[327881729,1716576648074,-500.0,0.00026849,10]
[327881730,1716576648084,-500.0,0.00026849,10]
[327881731,1716576648094,-500.0,0.00026849,10]
[327881732,1716576648104,-479.87581018,0.00026849,10]
[327881733,1716576648114,-1239.82,0.00026849,10]
[327881734,1716576648123,-500.0,0.00026849,10]
[327881735,1716576648132,-602.63,0.00026849,10]
[327881736,1716576648142,-511.33,0.00026849,10]
[327881737,1716576648152,-500.0,0.00026849,10]
[327881738,1716576648161,-500.0,0.00026849,10]
[327881739,1716576648171,-500.0,0.00026849,10]
[327881740,1716576648181,-1229.24,0.00026849,10]
[327881741,1716576648191,-500.0,0.00026849,10]
[327881742,1716576648200,-500.0,0.00026849,10]
[327881743,1716576648211,-3555.67,0.00026849,10]
[327881744,1716576648221,-500.0,0.00026849,10]
[327881745,1716576648232,-500.0,0.00026849,10]
[327881746,1716576648242,-3409.17,0.00026849,10]
[327881747,1716576648253,-500.0,0.00026849,10]
[327881748,1716576648263,-500.0,0.00026849,10]
[327881749,1716576648272,-592.29,0.00026849,10]
[327881750,1716576648282,-1124.78,0.00026849,10]
[327881751,1716576648292,-500.0,0.00026849,10]
[327881752,1716576648302,-500.0,0.00026849,10]
[327881753,1716576648312,-500.0,0.00026849,10]
[327881754,1716576648322,-151.0,0.00027021,7]
[327881755,1716576648332,-360.97565246,0.00027123,11]
[327881756,1716576648341,-370.85,0.00027123,11]
[327881757,1716576648350,-500.0,0.00027123,11]
[327881758,1716576648360,-627.46,0.00027123,11]
[327881759,1716576648369,-500.0,0.00027123,11]
[327881760,1716576648379,-500.0,0.00027123,11]
[327881761,1716576648388,-500.0,0.00027123,11]
[327881762,1716576648398,-500.0,0.00027123,11]
[327881763,1716576648407,-500.0,0.00027123,11]
[327881764,1716576648417,-605.9,0.00027123,11]
[327881765,1716576648427,-516.99,0.00027123,11]
[327881766,1716576648436,-500.0,0.00027123,11]
[327881767,1716576648446,-500.0,0.00027123,11]
[327881768,1716576648455,-500.0,0.00027123,11]
[327881769,1716576648464,-500.0,0.00027123,11]
[327881770,1716576648473,-500.0,0.00027123,11]
[327881771,1716576648484,-572.78,0.00027123,11]
[327881772,1716576648494,-500.0,0.00027123,11]
[327881773,1716576648503,-500.0,0.00027123,11]
[327881774,1716576648512,-500.0,0.00027123,11]
[327881775,1716576648522,-382.88,0.00027123,11]
[327881776,1716576648532,-1733.98,0.00027123,11]
[327881777,1716576648541,-500.0,0.00027123,11]
[327881778,1716576648551,-500.0,0.00027123,11]
[327881779,1716576648561,-500.0,0.00027123,11]
[327881780,1716576648572,-2950.1,0.00027123,11]
[327881781,1716576648582,-947.09,0.00027123,11]
[327881782,1716576648592,-500.0,0.00027123,11]
[327881783,1716576648602,-306.11,0.00027123,11]
[327881784,1716576648612,-526.6,0.00027123,11]
[327881785,1716576648621,-1239.82,0.00027123,11]
[327881786,1716576648631,-500.0,0.00027123,11]
[327881787,1716576648640,-602.63,0.00027123,11]
[327881788,1716576648652,-511.33,0.00027123,11]
[327881789,1716576648663,-500.0,0.00027123,11]
[327881790,1716576648672,-500.0,0.00027123,11]
[327881791,1716576648682,-500.0,0.00027123,11]
[327881792,1716576648691,-1229.24,0.00027123,11]
[327881793,1716576648701,-500.0,0.00027123,11]
[327881794,1716576648711,-3555.67,0.00027123,11]
[327881795,1716576648721,-500.0,0.00027123,11]
[327881796,1716576648733,-500.0,0.00027123,11]
[327881797,1716576648743,-3409.17,0.00027123,11]
[327881798,1716576648753,-500.0,0.00027123,11]
[327881799,1716576648763,-500.0,0.00027123,11]
[327881800,1716576648774,-592.29,0.00027123,11]
[327881801,1716576648784,-1124.78,0.00027123,11]
[327881802,1716576648794,-500.0,0.00027123,11]
[327881803,1716576648804,-500.0,0.00027123,11]
[327881804,1716576648814,-500.0,0.00027123,11]
[327881805,1716576648824,-918.12734291,0.00027328,2]
[327881806,1716576648834,-1137.40253748,0.0002739,2]
[327881807,1716576648844,-290.33,0.00027397,12]
[327881808,1716576648853,-500.0,0.00027397,12]
[327881809,1716576648863,-500.0,0.00027397,12]
[327881810,1716576648873,-500.0,0.00027397,12]
[327881811,1716576648882,-616.7,0.00027397,12]
[327881812,1716576648892,-500.0,0.00027397,12]
[327881813,1716576648901,-516.99,0.00027397,12]
[327881814,1716576648911,-328.07052892,0.00027397,12]
[327881815,1716576648921,-647.86,0.00027397,12]
[327881816,1716576648931,-362.12362551,0.00027397,12]
[327881817,1716576648940,-500.0,0.00027397,12]
[327881818,1716576648949,-500.0,0.00027397,12]
[327881819,1716576648959,-572.78,0.00027397,12]
[327881820,1716576648969,-500.0,0.00027397,12]
[327881821,1716576648978,-500.0,0.00027397,12]
[327881822,1716576648987,-500.0,0.00027397,12]
[327881823,1716576648998,-1733.98,0.00027397,12]
[327881824,1716576649009,-500.0,0.00027397,12]
[327881825,1716576649019,-500.0,0.00027397,12]
[327881826,1716576649030,-500.0,0.00027397,12]
[327881827,1716576649040,-2950.1,0.00027397,12]
[327881828,1716576649050,-947.09,0.00027397,12]
[327881829,1716576649059,-159.23,0.00027397,12]
[327881830,1716576649069,-1239.82,0.00027397,12]
[327881831,1716576649079,-500.0,0.00027397,12]
[327881832,1716576649089,-602.63,0.00027397,12]
[327881833,1716576649098,-511.33,0.00027397,12]
[327881834,1716576649108,-500.0,0.00027397,12]
[327881835,1716576649117,-400.43,0.00027397,12]
[327881836,1716576649127,-500.0,0.00027397,12]
[327881837,1716576649136,-1229.24,0.00027397,12]
[327881838,1716576649146,-500.0,0.00027397,12]
[327881839,1716576649157,-3555.67,0.00027397,12]
[327881840,1716576649168,-500.0,0.00027397,12]
[327881841,1716576649179,-3409.17,0.00027397,12]
[327881842,1716576649189,-500.0,0.00027397,12]
[327881843,1716576649198,-500.0,0.00027397,12]
[327881844,1716576649208,-500.0,0.00027397,12]
[327881845,1716576649218,-592.29,0.00027397,12]
[327881846,1716576649228,-1124.78,0.00027397,12]
[327881847,1716576649238,-500.0,0.00027397,12]
[327881848,1716576649247,-500.0,0.00027397,12]
[327881849,1716576649259,-207.15,0.00027397,12]
[327881850,1716576649268,-198.83899968,0.000274,2]
[327881851,1716576649277,-151.0,0.00027667,7]
[327881852,1716576649287,-618.27406954,0.00027671,13]
[327881853,1716576649296,-500.0,0.00027671,13]
[327881854,1716576649306,-500.0,0.00027671,13]
[327881855,1716576649316,-518.18,0.00027671,13]
[327881856,1716576649326,-516.99,0.00027671,13]
[327881857,1716576649335,-500.0,0.00027671,13]
[327881858,1716576649345,-500.0,0.00027671,13]
[327881859,1716576649356,-572.78,0.00027671,13]
[327881860,1716576649365,-500.0,0.00027671,13]
[327881861,1716576649375,-454.92094965,0.00027671,13]
[327881862,1716576649385,-500.0,0.00027671,13]
[327881863,1716576649396,-1733.98,0.00027671,13]
[327881864,1716576649405,-500.0,0.00027671,13]
[327881865,1716576649415,-500.0,0.00027671,13]
[327881866,1716576649425,-500.0,0.00027671,13]
[327881867,1716576649434,-2950.1,0.00027671,13]
[327881868,1716576649444,-947.09,0.00027671,13]
[327881869,1716576649454,-1239.82,0.00027671,13]
[327881870,1716576649463,-500.0,0.00027671,13]
[327881871,1716576649473,-602.63,0.00027671,13]
[327881872,1716576649483,-511.33,0.00027671,13]
[327881873,1716576649493,-500.0,0.00027671,13]
[327881874,1716576649505,-500.0,0.00027671,13]
[327881875,1716576649514,-1229.24,0.00027671,13]
[327881876,1716576649524,-500.0,0.00027671,13]
[327881877,1716576649534,-3555.67,0.00027671,13]
[327881878,1716576649544,-500.0,0.00027671,13]
[327881879,1716576649554,-3409.17,0.00027671,13]
[327881880,1716576649563,-197.26538699,0.00027671,13]
[327881881,1716576649573,-500.0,0.00027671,13]
[327881882,1716576649583,-500.0,0.00027671,13]
[327881883,1716576649593,-592.29,0.00027671,13]